fUST/lending_fUST_20250617
["ID","MTS","AMOUNT","RATE_DAILY","PERIOD"]
[366267445,1750168247773,-460.0,0.00024109,6]
[366267446,1750168247783,-602.74,0.00024109,6]
[366267447,1750168247793,-500.0,0.00024109,2]
[366267448,1750168247802,-500.0,0.00024109,2]
[366267449,1750168247813,-500.0,0.00024109,2]
[366267450,1750168247826,-432.71153253,0.00024109,6]
[366267451,1750168247837,-500.0,0.00024109,2]
[366267452,1750168247847,-507.60319211,0.00024109,2]
[366267453,1750168247857,-970.1,0.00024109,6]
[366267454,1750168247868,-460.0,0.00024109,6]
[366267455,1750168247877,-440.0,0.00024109,6]
[366267456,1750168247887,-460.0,0.00024109,6]
[366267457,1750168247898,-408.01880777,0.00024109,6]
[366267458,1750168247911,-460.0,0.00024109,6]
[366267459,1750168247921,-334.96244374,0.00024109,6]
[366267460,1750168247931,-3410.11,0.00024109,6]
[366267461,1750168247941,-460.0,0.00024109,6]
[366267462,1750168247951,-460.0,0.00024109,6]
[366267463,1750168247961,-430.0,0.00024109,6]
[366267464,1750168247971,-2103.87,0.00024109,6]
[366267465,1750168247981,-1071.78,0.00024109,6]
[366267466,1750168247990,-460.0,0.00024109,6]
[366267467,1750168248000,-518.82,0.00024109,6]
[366267468,1750168248011,-580.62407819,0.00024109,6]
[366267469,1750168248021,-402.85568984,0.00024109,6]
[366267470,1750168248030,-460.0,0.00024109,6]
[366267471,1750168248040,-460.0,0.00024109,6]
[366267472,1750168248051,-547.602809,0.00024109,6]
[366267473,1750168248062,-523.59134174,0.00024109,6]
[366267474,1750168248078,-460.0,0.00024109,6]
[366267475,1750168248088,-460.0,0.00024109,6]
[366267476,1750168248098,-450.17433449,0.00024109,6]
[366267477,1750168248108,-691.91,0.00024109,6]
[366267478,1750168248118,-460.0,0.00024109,6]
[366267479,1750168248128,-425.82919193,0.00024109,6]
[366267480,1750168248138,-460.0,0.00024109,6]
[366267481,1750168248147,-907.35,0.00024109,6]
[366267482,1750168248157,-460.0,0.00024109,6]
[366267483,1750168248167,-460.0,0.00024109,6]
[366267484,1750168248177,-5033.28,0.00024109,6]
[366267485,1750168248187,-460.0,0.00024109,6]
[366267486,1750168248196,-460.0,0.00024109,6]
[366267487,1750168248206,-460.0,0.00024109,6]
[366267488,1750168248216,-460.0,0.00024109,6]
[366267489,1750168248225,-460.0,0.00024109,6]
[366267490,1750168248235,-460.0,0.00024109,6]
[366267491,1750168248245,-460.0,0.00024109,6]
[366267492,1750168248255,-6717.64,0.00024109,6]
[366267493,1750168248265,-460.0,0.00024109,6]
[366267494,1750168248275,-460.0,0.00024109,6]
[366267495,1750168248286,-460.0,0.00024109,6]
[366267496,1750168248294,-460.0,0.00024109,6]
[366267497,1750168248303,-460.0,0.00024109,6]
[366267498,1750168248313,-460.0,0.00024109,6]
[366267499,1750168248323,-460.0,0.00024109,6]
[366267500,1750168248332,-460.0,0.00024109,6]
[366267501,1750168248342,-442.6961704,0.00024109,6]
[366267502,1750168248351,-460.0,0.00024109,6]
[366267503,1750168248360,-310.35656205,0.00024109,6]
[366267504,1750168248369,-460.0,0.00024109,6]
[366267505,1750168248378,-460.0,0.00024109,6]
[366267506,1750168248388,-460.0,0.00024109,6]
[366267507,1750168248397,-460.0,0.00024109,6]
[366267508,1750168248406,-460.0,0.00024109,6]
[366267509,1750168248416,-939.84,0.00024109,6]
[366267510,1750168248426,-460.0,0.00024109,6]
[366267511,1750168248435,-460.0,0.00024109,6]
[366267512,1750168248445,-514.04277809,0.00024109,6]
[366267513,1750168248454,-441.89149295,0.00024109,6]
[366267514,1750168248464,-5237.53,0.00024109,6]
[366267515,1750168248475,-460.0,0.00024109,6]
[366267516,1750168248485,-500.0,0.0002413,2]
[366267517,1750168248495,-370.0,0.00024136,6]
[366267518,1750168248504,-430.0,0.00024136,6]
[366267519,1750168248515,-383.67696952,0.00024136,6]
[366267520,1750168248524,-410.0,0.00024136,6]
[366267521,1750168248534,-393.7434534,0.00024136,6]
[366267522,1750168248543,-425.23120336,0.00024136,6]
[366267523,1750168248552,-272.003201,0.00024136,6]
[366267524,1750168248562,-460.0,0.00024136,6]
[366267525,1750168248571,-460.0,0.00024136,6]
[366267526,1750168248581,-460.0,0.00024136,6]
[366267527,1750168248591,-460.0,0.00024136,6]
[366267528,1750168248601,-460.0,0.00024136,6]
[366267529,1750168248611,-460.0,0.00024136,6]
[366267530,1750168248620,-460.0,0.00024136,6]
[366267531,1750168248629,-460.0,0.00024136,6]
[366267532,1750168248639,-460.0,0.00024136,6]
[366267533,1750168248648,-460.0,0.00024136,6]
[366267534,1750168248657,-384.35353115,0.00024136,6]
[366267535,1750168248667,-307.59838783,0.00024136,6]
[366267536,1750168248676,-460.0,0.00024136,6]
[366267537,1750168248686,-460.0,0.00024136,6]
[366267538,1750168248696,-428.56834991,0.00024136,6]
[366267539,1750168248705,-460.0,0.00024136,6]
[366267540,1750168248715,-460.0,0.00024136,6]
[366267541,1750168248724,-460.0,0.00024136,6]
[366267542,1750168248734,-460.0,0.00024136,6]
[366267543,1750168248744,-460.0,0.00024136,6]
[366267544,1750168248754,-460.0,0.00024136,6]
[366267545,1750168248765,-436.54330812,0.00024136,6]
[366267546,1750168248775,-430.0,0.00024136,6]
[366267547,1750168248784,-460.0,0.00024136,6]
[366267548,1750168248794,-460.0,0.00024136,6]
[366267549,1750168248804,-460.0,0.00024136,6]
[366267550,1750168248814,-432.77394375,0.00024136,6]
[366267551,1750168248826,-362.02250061,0.00024136,6]
[366267552,1750168248836,-169.34039913,0.00024136,6]
[366267553,1750168248845,-267.44472567,0.00024136,6]
[366267554,1750168248855,-460.0,0.00024136,6]
[366267555,1750168248865,-460.0,0.00024136,6]
[366267556,1750168248875,-460.0,0.00024136,6]
[366267557,1750168248884,-199.56816334,0.00024136,6]
[366267558,1750168248894,-460.0,0.00024136,6]
[366267559,1750168248903,-460.0,0.00024136,6]
[366267560,1750168248916,-460.0,0.00024136,6]
[366267561,1750168248926,-460.0,0.00024136,6]
[366267562,1750168248936,-442.35135296,0.00024136,6]
[366267563,1750168248945,-460.0,0.00024136,6]
[366267564,1750168248956,-460.0,0.00024136,6]
[366267565,1750168248965,-210.83379737,0.00024136,6]
[366267566,1750168248974,-460.0,0.00024136,6]
[366267567,1750168248984,-460.0,0.00024136,6]
[366267568,1750168248993,-440.0,0.00024136,6]
[366267569,1750168249003,-460.0,0.00024136,6]
[366267570,1750168249015,-460.0,0.00024136,6]
[366267571,1750168249024,-409.17542011,0.00024136,6]
[366267572,1750168249641,-315.45388124,0.00024,30]
[366267573,1750168249652,-50.82457989,0.00024136,6]
[366267574,1750168249662,-72.099001,0.00024136,6]
[366267575,1750168249674,-387.900999,0.00024136,6]
[366267576,1750168249684,-49.47536837,0.00024136,6]
[366267577,1750168249829,-239.29353038,0.000219,2]
[366267578,1750168249839,-460.0,0.00024109,6]
[366267579,1750168249849,-412.81915587,0.00024109,6]
[366267580,1750168249859,-410.52463163,0.00024136,6]
[366267581,1750168249871,-460.0,0.00024136,6]
[366267582,1750168249881,-460.0,0.00024136,6]
[366267583,1750168249892,-460.0,0.00024136,6]
[366267584,1750168249903,-460.0,0.00024136,6]
[366267585,1750168249913,-380.04066359,0.00024136,6]
[366267586,1750168249923,-460.0,0.00024136,6]
[366267587,1750168249932,-460.0,0.00024136,6]
[366267588,1750168249942,-478.0,0.00024136,6]
[366267589,1750168249952,-460.0,0.00024136,6]
[366267590,1750168249962,-460.0,0.00024136,6]
[366267591,1750168249973,-460.0,0.00024136,6]
[366267592,1750168249983,-460.0,0.00024136,6]
[366267593,1750168249994,-460.0,0.00024136,6]
[366267594,1750168250003,-460.0,0.00024136,6]
[366267595,1750168250014,-460.0,0.00024136,6]
[366267596,1750168250024,-460.0,0.00024136,6]
[366267597,1750168250033,-460.0,0.00024136,6]
[366267598,1750168250043,-460.0,0.00024136,6]
[366267599,1750168250053,-460.0,0.00024136,6]
[366267600,1750168250062,-336.32201852,0.00024136,6]
[366267602,1750168373467,944.89,0.00025119,120]
[366267610,1750168735912,-2794.0,0.00019602,2]
[366267617,1750168870686,179.60964036,0.00013699,2]
[366267618,1750168870717,416.89843464,0.00013699,2]
[366267621,1750169010160,-154.2000238,0.00019212,2]
[366267632,1750169199841,-289.88719468,0.0001902,2]
[366267684,1750169432730,-1637.42721401,0.00019886,2]
[366267685,1750169432744,-695.00504384,0.00019886,2]
[366267686,1750169432757,-2667.56774215,0.00019886,2]
[366267687,1750169432767,-154.41911208,0.00020087,2]
[366267688,1750169432777,-596.508075,0.00020187,2]
[366267689,1750169432787,-500.0,0.00020492,2]
[366267690,1750169432796,-432.94401235,0.00020718,2]
[366267691,1750169432846,-168.92335065,0.00020718,2]
[366267692,1750169432856,-196.394242,0.00020718,2]
[366267693,1750169432867,-1200.0,0.0002172,2]
[366267694,1750169432877,-300.0,0.00021721,2]
[366267695,1750169432901,-300.0,0.00021721,2]
[366267696,1750169432912,-300.0,0.00021721,2]
[366267697,1750169432922,-300.0,0.00021721,2]
[366267698,1750169432934,-835.82910252,0.00021722,2]
[366267699,1750169432945,-424.62582665,0.00021722,2]
[366267700,1750169432955,-160.0,0.00021722,2]
[366267701,1750169432966,-160.0,0.00021722,2]
[366267702,1750169432976,-229.94211981,0.00021722,2]
[366267703,1750169432987,-1641.96438932,0.00021722,2]
[366267704,1750169432998,-300.0,0.00021727,2]
[366267705,1750169433150,-10512.21021512,0.0002173,2]
[366267706,1750169433165,-2027.9128944,0.0002173,2]
[366267707,1750169433176,-213.39869953,0.0002173,2]
[366267708,1750169433187,-171.0,0.00022,2]
[366267709,1750169433197,-258.339,0.00022038,2]
[366267710,1750169433210,-500.0,0.0002204,2]
[366267711,1750169433220,-500.0,0.0002204,2]
[366267712,1750169433231,-500.0,0.0002204,2]
[366267713,1750169433243,-500.0,0.0002204,2]
[366267714,1750169433254,-500.0,0.0002204,2]
[366267715,1750169433264,-500.0,0.0002204,2]
[366267716,1750169433276,-569.06659903,0.0002204,2]
[366267717,1750169433286,-500.0,0.0002204,2]
[366267718,1750169433297,-500.0,0.0002204,2]
[366267719,1750169433308,-500.0,0.0002204,2]
[366267720,1750169433319,-15963.30785792,0.00022044,2]
[366267721,1750169433354,-8936.69214208,0.00022044,2]
[366267722,1750169433364,-500.0,0.00022176,6]
[366267723,1750169433375,-166.06632675,0.00022229,5]
[366267724,1750169433384,-9963.2435248,0.00022293,2]
[366267725,1750169433395,-176.27061953,0.0002245,6]
[366267726,1750169433406,-500.0,0.00022684,2]
[366267727,1750169433417,-321.2999611,0.00022707,2]
[366267728,1750169433427,-207.4,0.00022872,2]
[366267729,1750169433437,-159.52902025,0.00023019,2]
[366267730,1750169433448,-500.0,0.00023136,2]
[366267731,1750169433458,-172.438956,0.00023164,2]
[366267732,1750169433469,-500.0,0.0002317,2]
[366267733,1750169433479,-195.89033379,0.00023287,2]
[366267734,1750169433490,-500.0,0.00023479,2]
[366267735,1750169433501,-500.0,0.0002353,2]
[366267736,1750169433511,-500.0,0.00023576,2]
[366267737,1750169433522,-500.0,0.00023579,2]
[366267738,1750169433532,-406.0,0.00023592,2]
[366267739,1750169433544,-420.0,0.00023611,2]
[366267740,1750169433554,-420.0,0.00023611,2]
[366267741,1750169433564,-420.0,0.00023617,2]
[366267742,1750169433574,-1680.0,0.0002372,2]
[366267743,1750169433585,-597.997716,0.00023787,3]
[366267744,1750169433596,-500.0,0.00023854,2]
[366267745,1750169433607,-500.0,0.00023861,2]
[366267746,1750169433617,-173.35247161,0.00023891,2]
[366267747,1750169433627,-500.0,0.00023997,2]
[366267748,1750169433637,-500.0,0.00023997,2]
[366267749,1750169433648,-500.0,0.00023997,2]
[366267750,1750169433658,-500.0,0.00023997,2]
[366267751,1750169433668,-500.0,0.00023997,2]
[366267752,1750169433679,-3000.0,0.00024,2]
[366267753,1750169433689,-622.93,0.00024,2]
[366267754,1750169433699,-1134.37570123,0.00024009,2]
[366267755,1750169433709,-3000.0,0.0002401,2]
[366267756,1750169433718,-3000.0,0.0002402,2]
[366267757,1750169433729,-3000.0,0.0002403,2]
[366267758,1750169433739,-3000.0,0.0002404,2]
[366267759,1750169433749,-3000.0,0.0002405,2]
[366267760,1750169433759,-3000.0,0.0002406,2]
[366267761,1750169433769,-3000.0,0.0002407,2]
[366267762,1750169433779,-3000.0,0.0002408,2]
[366267763,1750169433790,-916.62203861,0.0002409,2]
[366267788,1750169438567,-302.78311818,0.000209,4]
[366267790,1750169438578,-302.78311816,0.00021072,4]
[366267792,1750169438587,-302.78311816,0.00021245,4]
[366267794,1750169438597,-302.78311816,0.00021417,5]
[366267796,1750169438607,-302.78311816,0.0002159,5]
[366267798,1750169438617,-302.78311816,0.00021762,5]
[366267800,1750169438628,-302.78311816,0.00021934,6]
[366267802,1750169438638,-500.0,0.00022039,2]
[366267804,1750169438648,-646.59183053,0.00022039,2]
[366267806,1750169438657,-170.19542188,0.00022039,2]
[366267808,1750169438667,-572.95598846,0.00022039,2]
[366267810,1750169438676,-500.0,0.00022039,2]
[366267812,1750169438686,-500.0,0.00022039,2]
[366267813,1750169438695,-500.0,0.00022039,2]
[366267815,1750169438705,-500.0,0.00022039,2]
[366267817,1750169438715,-174.34083005,0.00022039,2]
[366267819,1750169438725,-500.0,0.00022039,2]
[366267821,1750169438735,-399.76400774,0.00022039,2]
[366267823,1750169438747,-500.0,0.00022039,2]
[366267826,1750169438756,-500.0,0.00022039,2]
[366267829,1750169438766,-598.4444265,0.00022039,2]
[366267832,1750169438776,-302.78311816,0.00022107,6]
[366267835,1750169438786,-302.78311816,0.00022279,6]
[366267837,1750169438796,-302.78311816,0.00022452,7]
[366267838,1750169438805,-302.78311816,0.00022624,7]
[366267840,1750169438815,-302.78311816,0.00022797,7]
[366267842,1750169438824,-302.78311816,0.00022969,8]
[366267845,1750169438834,-302.78311816,0.00023141,8]
[366267848,1750169438844,-302.78311816,0.00023314,9]
[366267851,1750169438853,-302.78311816,0.00023486,9]
[366267854,1750169438863,-302.78311816,0.00023659,9]
[366267856,1750169438873,-432.75669338,0.00023997,2]
[366267859,1750169438882,-500.0,0.00023997,2]
[366267862,1750169438892,-500.0,0.00023997,2]
[366267864,1750169438901,-500.0,0.00023997,2]
[366267866,1750169438911,-500.0,0.00023997,2]
[366267868,1750169438921,-644.09003302,0.00023997,2]
[366267870,1750169438931,-117.43656431,0.00023997,2]
[366267873,1750169438947,-302.78311816,0.00023831,10]
[366267874,1750169438958,-382.56343569,0.00023997,2]
[366267876,1750169438968,-2083.37796139,0.0002409,2]
[366267878,1750169438979,-176.22,0.00024099,3]
[366267880,1750169438988,-528.71,0.00024099,3]
[366267882,1750169438998,-3000.0,0.000241,2]
[366267884,1750169439008,-500.0,0.00024104,2]
[366267886,1750169439018,-160.0,0.00024108,2]
[366267888,1750169439027,-500.0,0.00024108,2]
[366267890,1750169439037,-180.0,0.00024109,6]
[366267892,1750169439046,-460.0,0.00024109,6]
[366267893,1750169439055,-440.0,0.00024109,6]
[366267895,1750169439065,-506.19059437,0.00024109,6]
[366267897,1750169439074,-460.0,0.00024109,6]
[366267899,1750169439084,-410.0,0.00024109,6]
[366267901,1750169439093,-393.7434534,0.00024109,6]
[366267903,1750169439102,-460.0,0.00024109,6]
[366267905,1750169439112,-425.23120336,0.00024109,6]
[366267907,1750169439122,-460.0,0.00024109,6]
[366267909,1750169439131,-460.0,0.00024109,6]
[366267910,1750169439140,-440.0,0.00024109,6]
[366267912,1750169439150,-395.71469136,0.00024109,6]
[366267914,1750169439159,-464.51351703,0.00024109,6]
[366267916,1750169439169,-460.0,0.00024109,6]
[366267918,1750169439179,-460.0,0.00024109,6]
[366267920,1750169439189,-400.0,0.00024109,6]
[366267922,1750169439199,-460.0,0.00024109,6]
[366267924,1750169439213,-460.0,0.00024109,6]
[366267926,1750169439222,-460.0,0.00024109,6]
[366267928,1750169439232,-460.0,0.00024109,6]
[366267929,1750169439241,-460.0,0.00024109,6]
[366267931,1750169439251,-458.78370305,0.00024109,6]
[366267933,1750169439261,-422.58745322,0.00024109,6]
[366267935,1750169439271,-460.0,0.00024109,6]
[366267937,1750169439280,-272.003201,0.00024109,6]
[366267939,1750169439292,-460.0,0.00024109,6]
[366267941,1750169439302,-460.0,0.00024109,6]
[366267942,1750169439312,-328.58521431,0.00024109,6]
[366267944,1750169439322,-460.0,0.00024109,6]
[366267946,1750169439331,-460.0,0.00024109,6]
[366267948,1750169439341,-306.57011729,0.00024109,6]
[366267950,1750169439351,-460.0,0.00024109,6]
[366267952,1750169439360,-460.0,0.00024109,6]
[366267953,1750169439370,-460.0,0.00024109,6]
[366267955,1750169439380,-431.02982276,0.00024109,6]
[366267957,1750169439390,-460.0,0.00024109,6]
[366267959,1750169439399,-420.0,0.00024109,6]
[366267961,1750169439410,-460.0,0.00024109,6]
[366267963,1750169439420,-460.0,0.00024109,6]
[366267965,1750169439429,-465.27856495,0.00024109,6]
[366267967,1750169439440,-460.0,0.00024109,6]
[366267969,1750169439450,-410.0,0.00024109,6]
[366267971,1750169439460,-460.0,0.00024109,6]
[366267972,1750169439469,-378.82161306,0.00024109,6]
[366267974,1750169439478,-460.0,0.00024109,6]
[366267976,1750169439488,-460.0,0.00024109,6]
[366267978,1750169439499,-460.0,0.00024109,6]
[366267980,1750169439509,-460.0,0.00024109,6]
[366267982,1750169439519,-460.0,0.00024109,6]
[366267984,1750169439530,-1000.0,0.00024109,6]
[366267986,1750169439540,-460.0,0.00024109,6]
[366267988,1750169439550,-432.77074467,0.00024109,6]
[366267990,1750169439560,-410.0,0.00024109,6]
[366267992,1750169439570,-460.0,0.00024109,6]
[366267993,1750169439580,-460.0,0.00024109,6]
[366267995,1750169439589,-410.0,0.00024109,6]
[366267996,1750169439599,-500.0,0.00024109,6]
[366267997,1750169439609,-460.0,0.00024109,6]
[366267998,1750169439620,-460.0,0.00024109,6]
[366267999,1750169439630,-583.19684159,0.00024109,6]
[366268000,1750169439640,-460.0,0.00024109,6]
[366268001,1750169439650,-460.0,0.00024109,6]
[366268002,1750169439661,-420.0,0.00024109,6]
[366268003,1750169439671,-460.0,0.00024109,6]
[366268004,1750169439681,-460.0,0.00024109,6]
[366268005,1750169439691,-460.0,0.00024109,6]
[366268006,1750169439702,-460.0,0.00024109,6]
[366268007,1750169439713,-460.0,0.00024109,6]
[366268008,1750169439723,-460.0,0.00024109,6]
[366268009,1750169439734,-460.0,0.00024109,6]
[366268010,1750169439751,-460.0,0.00024109,6]
[366268011,1750169439762,-460.0,0.00024109,6]
[366268012,1750169439772,-460.0,0.00024109,6]
[366268013,1750169439782,-460.0,0.00024109,6]
[366268014,1750169439794,-432.1844074,0.00024109,6]
[366268015,1750169439803,-460.0,0.00024109,6]
[366268017,1750169439813,-356.20223324,0.00024109,6]
[366268019,1750169439823,-460.0,0.00024109,6]
[366268021,1750169439833,-460.0,0.00024109,6]
[366268031,1750169439935,-460.0,0.00024109,6]
[366268033,1750169439945,-460.0,0.00024109,6]
[366268035,1750169439956,-492.61,0.00024109,6]
[366268037,1750169439967,-430.0,0.00024109,6]
[366268038,1750169439977,-460.0,0.00024109,6]
[366268040,1750169439987,-460.0,0.00024109,6]
[366268042,1750169440002,-400.0,0.00024109,6]
[366268044,1750169440012,-460.0,0.00024109,6]
[366268046,1750169440023,-460.0,0.00024109,6]
[366268048,1750169440034,-560.77469284,0.00024109,6]
[366268050,1750169440044,-543.86578855,0.00024109,6]
[366268052,1750169440054,-446.99495305,0.00024109,6]
[366268054,1750169440064,-392.22109757,0.00024109,6]
[366268056,1750169440074,-205.93978856,0.00024109,6]
[366268057,1750169440083,-460.0,0.00024109,6]
[366268059,1750169440092,-460.0,0.00024109,6]
[366268061,1750169440102,-460.0,0.00024109,6]
[366268063,1750169440112,-567.09454621,0.00024109,6]
[366268065,1750169440121,-500.0,0.00024109,6]
[366268067,1750169440131,-460.0,0.00024109,6]
[366268069,1750169440141,-460.0,0.00024109,6]
[366268071,1750169440150,-460.0,0.00024109,6]
[366268073,1750169440160,-460.0,0.00024109,6]
[366268074,1750169440170,-460.0,0.00024109,6]
[366268076,1750169440180,-460.0,0.00024109,6]
[366268078,1750169440189,-497.1,0.00024109,6]
[366268080,1750169440200,-418.12591484,0.00024109,6]
[366268082,1750169440211,-460.0,0.00024109,6]
[366268084,1750169440221,-460.0,0.00024109,6]
[366268086,1750169440231,-298.42818796,0.00024109,6]
[366268087,1750169440243,-460.0,0.00024109,6]
[366268089,1750169440254,-460.0,0.00024109,6]
[366268091,1750169440264,-440.0,0.00024109,6]
[366268093,1750169440274,-460.0,0.00024109,6]
[366268095,1750169440285,-460.0,0.00024109,6]
[366268097,1750169440295,-460.0,0.00024109,6]
[366268099,1750169440305,-460.0,0.00024109,6]
[366268101,1750169440315,-460.0,0.00024109,6]
[366268103,1750169440325,-502.23526613,0.00024109,6]
[366268105,1750169440335,-460.0,0.00024109,6]
[366268107,1750169440345,-460.0,0.00024109,6]
[366268109,1750169440354,-1447.5,0.00024109,2]
[366268112,1750169440364,-420.0,0.00024109,6]
[366268114,1750169440374,-460.0,0.00024109,6]
[366268116,1750169440384,-460.0,0.00024109,6]
[366268118,1750169440394,-322.50935835,0.00024109,6]
[366268120,1750169440404,-440.0,0.00024109,6]
[366268122,1750169440414,-460.0,0.00024109,6]
[366268124,1750169440424,-460.0,0.00024109,6]
[366268126,1750169440434,-460.0,0.00024109,6]
[366268128,1750169440443,-460.53622006,0.00024109,6]
[366268129,1750169440454,-364.43771269,0.00024109,6]
[366268131,1750169440463,-460.0,0.00024109,6]
[366268133,1750169440472,-460.0,0.00024109,6]
[366268135,1750169440482,-360.0,0.00024109,6]
[366268137,1750169440492,-440.0,0.00024109,6]
[366268139,1750169440502,-460.0,0.00024109,6]
[366268141,1750169440511,-460.0,0.00024109,6]
[366268143,1750169440522,-460.0,0.00024109,6]
[366268144,1750169440532,-460.0,0.00024109,6]
[366268146,1750169440542,-460.0,0.00024109,6]
[366268148,1750169440551,-460.0,0.00024109,6]
[366268150,1750169440561,-466.96312873,0.00024109,6]
[366268152,1750169440571,-460.0,0.00024109,6]
[366268154,1750169440580,-423.18231507,0.00024109,6]
[366268156,1750169440590,-460.0,0.00024109,6]
[366268158,1750169440599,-460.0,0.00024109,6]
[366268159,1750169440609,-460.0,0.00024109,6]
[366268161,1750169440618,-460.0,0.00024109,6]
[366268163,1750169440628,-460.0,0.00024109,6]
[366268165,1750169440637,-460.0,0.00024109,6]
[366268167,1750169440647,-460.0,0.00024109,6]
[366268169,1750169440656,-460.0,0.00024109,6]
[366268171,1750169440666,-179.16194446,0.00024109,6]
[366268173,1750169440676,-460.0,0.00024109,6]
[366268174,1750169440686,-475.20554339,0.00024109,6]
[366268176,1750169440695,-460.0,0.00024109,6]
[366268178,1750169440705,-439.85770758,0.00024109,6]
[366268180,1750169440715,-460.0,0.00024109,6]
[366268182,1750169440725,-460.0,0.00024109,6]
[366268184,1750169440735,-390.0,0.00024109,6]
[366268186,1750169440747,-460.0,0.00024109,6]
[366268188,1750169440758,-460.0,0.00024109,6]
[366268190,1750169440768,-460.0,0.00024109,6]
[366268191,1750169440777,-586.32868557,0.00024109,6]
[366268193,1750169440787,-460.0,0.00024109,6]
[366268195,1750169440796,-460.0,0.00024109,6]
[366268197,1750169440806,-460.0,0.00024109,6]
[366268199,1750169440815,-562.40551882,0.00024109,6]
[366268201,1750169440824,-460.0,0.00024109,6]
[366268203,1750169440834,-460.0,0.00024109,6]
[366268205,1750169440843,-460.0,0.00024109,6]
[366268206,1750169440853,-401.61429903,0.00024109,6]
[366268208,1750169440862,-442.19252578,0.00024109,6]
[366268210,1750169440872,-460.0,0.00024109,6]
[366268212,1750169440881,-302.29621367,0.00024109,6]
[366268214,1750169440891,-426.09359056,0.00024109,6]
[366268216,1750169440900,-508.13166638,0.00024109,6]
[366268218,1750169440910,-460.0,0.00024109,6]
[366268220,1750169440919,-320.0,0.00024109,6]
[366268222,1750169440929,-460.0,0.00024109,6]
[366268223,1750169440939,-460.0,0.00024109,6]
[366268226,1750169440949,-460.0,0.00024109,6]
[366268228,1750169440959,-460.0,0.00024109,6]
[366268230,1750169440969,-605.74769493,0.00024109,6]
[366268232,1750169440980,-460.0,0.00024109,6]
[366268234,1750169440992,-338.65314575,0.00024109,6]
[366268236,1750169441002,-460.0,0.00024109,6]
[366268237,1750169441013,-460.0,0.00024109,6]
[366268239,1750169441023,-460.0,0.00024109,6]
[366268241,1750169441034,-460.0,0.00024109,6]
[366268243,1750169441044,-460.0,0.00024109,6]
[366268245,1750169441054,-460.0,0.00024109,6]
[366268247,1750169441066,-460.0,0.00024109,6]
[366268249,1750169441076,-460.0,0.00024109,6]
[366268250,1750169441086,-460.0,0.00024109,6]
[366268252,1750169441096,-460.0,0.00024109,6]
[366268254,1750169441105,-460.0,0.00024109,6]
[366268256,1750169441115,-233.53425712,0.00024109,6]
[366268258,1750169441126,-460.0,0.00024109,6]
[366268260,1750169441138,-460.0,0.00024109,6]
[366268262,1750169441149,-410.0,0.00024109,6]
[366268264,1750169441159,-460.0,0.00024109,6]
[366268266,1750169441169,-460.0,0.00024109,6]
[366268268,1750169441179,-476.5,0.00024109,6]
[366268269,1750169441189,-460.0,0.00024109,6]
[366268271,1750169441201,-460.0,0.00024109,6]
[366268280,1750169441304,-460.0,0.00024109,6]
[366268282,1750169441316,-410.0,0.00024109,6]
[366268284,1750169441326,-260.48194179,0.00024109,6]
[366268286,1750169441336,-430.0,0.00024109,6]